bitfinex-derivatives/quotes_BTCF0:USTF0_20251125
["timestamp","ask_amount","ask_price","bid_price","bid_amount"]
[1764083452350,0.0115135,86896.0,86887.0,0.3608]
[1764083452351,0.0115144,86889.0,86887.0,0.3608]
[1764083452561,0.42,86889.0,86883.0,0.2172]
[1764083452760,0.0115155,86880.0,86879.0,0.00017258]
[1764083452959,0.4115155,86880.0,86879.0,0.00017258]
[1764083453151,0.3715155,86880.0,86879.0,0.00017258]
[1764083453356,0.36,86880.0,86879.0,0.21737258]
[1764083454557,0.36,86880.0,86879.0,0.10921258]
[1764083455170,0.36,86880.0,86879.0,0.00017258]
[1764083456259,0.361,86880.0,86879.0,0.00017258]
[1764083456971,0.361,86880.0,86860.0,0.00012524]
[1764083456972,0.011518,86861.0,86860.0,0.00012524]
[1764083457175,0.4,86861.0,86860.0,0.00012524]
[1764083457467,0.4,86861.0,86860.0,0.21732524]
[1764083458165,0.00017269,86869.0,86868.0,0.2172]
[1764083458370,0.00017269,86869.0,86868.0,0.578]
[1764083458371,0.37017269,86869.0,86868.0,0.578]
[1764083459067,0.3608,86900.0,86870.0,0.0852]
[1764083459371,0.06256,86888.0,86887.0,0.3608]
[1764083459671,0.51512,86888.0,86887.0,0.3608]
[1764083459967,0.0115152,86883.0,86879.0,0.3608]
[1764083460166,0.42,86883.0,86882.0,0.28173]
[1764083460557,0.42,86883.0,86882.0,0.64253]
[1764083461061,0.00017269,86890.0,86889.0,0.2932443]
[1764083461261,0.27232,86910.0,86909.0,0.0115116]
[1764083461462,0.27232,86910.0,86909.0,0.64253]
[1764083461463,0.24,86910.0,86909.0,0.64253]
[1764083461666,0.51232,86910.0,86909.0,0.3608]
[1764083461865,0.27232,86899.0,86898.0,0.04113254]
[1764083462067,0.27232,86889.0,86888.0,0.04113254]
[1764083462274,0.68232,86889.0,86888.0,0.18328]
[1764083462466,0.27232,86885.0,86884.0,0.3608]
[1764083462769,0.2838354,86881.0,86880.0,0.00017258]
[1764083462978,1.1038354,86881.0,86880.0,0.00017258]
[1764083463269,0.27232,86861.0,86860.0,0.00012524]
[1764083463471,0.2838391,86853.0,86849.0,0.3608]
[1764083463774,0.27232,86847.0,86846.0,0.04113254]
[1764083463972,0.27232,86834.0,86832.0,0.04113254]
[1764083464175,0.27232,86831.0,86830.0,0.3608]
[1764083464378,0.68232,86831.0,86830.0,0.3608]
[1764083464570,0.68244524,86831.0,86830.0,0.3608]
[1764083464880,0.2838428,86825.0,86824.0,0.00017269]
[1764083465173,1.0346428,86825.0,86824.0,0.00017269]
[1764083465364,1.0346428,86825.0,86824.0,2.69e-06]
[1764083465563,1.4746428,86825.0,86824.0,2.69e-06]
[1764083465775,0.0115252,86807.0,86803.0,0.18328]
[1764083465978,0.0115252,86807.0,86787.0,0.3608]
[1764083465979,0.2838465,86797.0,86795.0,0.04113254]
[1764083466165,0.2838465,86797.0,86787.0,0.3608]
[1764083466166,0.4215265,86797.0,86787.0,0.3608]
[1764083466364,0.41,86797.0,86787.0,0.3608]
[1764083466569,0.27232,86788.0,86787.0,0.3608]
[1764083466775,0.40010438,86788.0,86787.0,0.3608]
[1764083466971,0.67242438,86788.0,86787.0,0.3608]
[1764083467574,0.27232,86785.0,86779.0,0.0001728]
[1764083467872,0.4,86785.0,86784.0,0.64262461]
[1764083468078,0.67232,86785.0,86784.0,0.36089461]
[1764083468372,0.67232,86785.0,86784.0,9.461e-05]
[1764083469467,0.67232,86785.0,86768.0,0.0852]
[1764083469468,0.13299,86778.0,86768.0,0.0852]
[1764083469674,0.39,86778.0,86777.0,0.28173]
[1764083469871,0.39,86778.0,86777.0,0.64253]
[1764083470175,0.00010438,86788.0,86787.0,0.28173]
[1764083470376,0.40010438,86788.0,86787.0,0.28173]
[1764083470772,0.47390218,86788.0,86784.0,0.0852]
[1764083470974,0.06227,86780.0,86779.0,0.0001728]
[1764083471177,0.531,86780.0,86779.0,0.0001728]
[1764083471477,0.38,86780.0,86779.0,0.2819428]
[1764083472588,0.4802588,86780.0,86779.0,0.0001728]
[1764083472878,0.5689888,86780.0,86779.0,0.0001728]
[1764083473079,0.55746,86780.0,86779.0,0.0001728]
[1764083474080,0.38,86780.0,86779.0,0.1402228]
[1764083474377,0.55746,86780.0,86779.0,0.0001728]
[1764083474975,0.91826,86780.0,86779.0,0.0001728]
[1764083475173,1.1108,86780.0,86760.0,0.08156]
[1764083475368,0.0115319,86757.0,86751.0,0.3608]
[1764083475574,0.0115321,86755.0,86752.0,0.18348]
[1764083475779,0.38,86755.0,86752.0,0.18348]
[1764083475981,0.38,86755.0,86754.0,0.28177]
[1764083476179,9.176e-05,86756.0,86755.0,0.2933021]
[1764083476479,9.176e-05,86756.0,86755.0,0.28177]
[1764083476879,0.39009176,86756.0,86755.0,0.14005]
[1764083477182,0.17746,86752.0,86746.0,0.0001729]
[1764083477372,0.1889932,86747.0,86746.0,0.1836529]
[1764083477579,0.6189932,86747.0,86746.0,0.0001729]
[1764083477880,0.17746,86741.0,86740.0,0.00012736]
[1764083478081,0.41,86741.0,86740.0,0.28189736]
[1764083478386,0.598994,86741.0,86740.0,0.00012736]
[1764083478588,0.58746,86741.0,86740.0,0.00012736]
[1764083478784,0.58746,86741.0,86727.0,0.18352]
[1764083478785,1.2208,86741.0,86716.0,0.3608]
[1764083478982,0.17746,86721.0,86720.0,0.0001729]
[1764083479282,1.28826,86721.0,86720.0,0.0001729]
[1764083479481,1.28826,86721.0,86711.0,0.3608]
[1764083479482,0.38,86721.0,86711.0,0.3608]
[1764083479686,0.44,86721.0,86720.0,0.28177]
[1764083479884,0.44011328,86721.0,86720.0,0.28177]
[1764083480073,0.52884328,86721.0,86718.0,0.0115369]
[1764083480279,0.44011328,86721.0,86720.0,0.14005]
[1764083480473,0.44011328,86721.0,86720.0,0.1515867]
[1764083481183,0.0115367,86720.0,86715.0,0.08156]
[1764083481384,0.0115367,86720.0,86712.0,0.00011515]
[1764083481385,0.17746,86713.0,86712.0,0.00011515]
[1764083481589,0.08873,86692.0,86691.0,0.3608]
[1764083481883,0.43010685,86692.0,86691.0,0.50085]
[1764083482480,0.43010685,86692.0,86691.0,0.3608]
[1764083483292,0.43010685,86692.0,86691.0,0.50085]
[1764083483490,0.43010685,86692.0,86691.0,0.64257]
[1764083484492,0.00010685,86692.0,86691.0,0.64257]
[1764083485179,0.00010685,86692.0,86691.0,0.82621]
[1764083485591,0.00017301,86700.0,86699.0,0.2933095]
[1764083485890,0.0115369,86719.0,86715.0,0.36333]
[1764083486086,0.3608,86728.0,86720.0,0.0115366]
[1764083486391,0.0115369,86719.0,86715.0,0.08156]
[1764083486578,9.452e-05,86718.0,86717.0,0.28177]
[1764083486784,0.39163152,86718.0,86717.0,0.28177]
[1764083487092,0.38009452,86718.0,86717.0,0.28177]
[1764083487291,0.0115371,86717.0,86715.0,0.08156]
[1764083487486,0.45,86717.0,86715.0,0.22161]
[1764083487690,0.45,86717.0,86709.0,0.00017301]
[1764083487691,0.0115381,86710.0,86709.0,0.00017301]
[1764083487885,0.4615381,86710.0,86709.0,0.00017301]
[1764083488682,0.4615381,86710.0,86709.0,0.14022301]
[1764083488884,0.45,86710.0,86709.0,0.28194301]
[1764083489288,0.53873,86710.0,86709.0,0.00017301]
[1764083489488,0.62746,86710.0,86709.0,0.00017301]
[1764083489883,0.0115393,86701.0,86700.0,0.22161]
[1764083490196,0.0115393,86701.0,86683.0,0.3608]
[1764083490197,0.4702693,86701.0,86699.0,0.18364]
[1764083490494,0.0115399,86697.0,86691.0,0.54444]
[1764083490687,0.0115402,86694.0,86692.0,0.0115405]
[1764083490890,0.0115402,86694.0,86693.0,0.28177]
[1764083490891,0.4,86694.0,86693.0,0.28177]
[1764083491893,0.4,86694.0,86691.0,0.3608]
[1764083491894,0.17746,86692.0,86691.0,0.3608]
[1764083492194,0.17746,86689.0,86688.0,0.18364]
[1764083492386,0.52873,86689.0,86688.0,0.32369]
[1764083492586,0.44,86689.0,86688.0,0.46541]
[1764083493687,0.44,86689.0,86688.0,0.28177]
[1764083493881,0.08873,86686.0,86685.0,0.08156]
[1764083494085,0.08873,86686.0,86685.0,0.0931014]
[1764083494086,0.50873,86686.0,86685.0,0.0931014]
[1764083494494,0.50873,86686.0,86685.0,0.08156]
[1764083494697,0.0115414,86685.0,86683.0,0.3608]
[1764083494888,0.17746,86675.0,86665.0,0.04113254]
[1764083495084,0.17746,86675.0,86661.0,0.0115446]
[1764083495085,0.08873,86663.0,86661.0,0.0115446]
[1764083495387,0.53873,86663.0,86662.0,0.3608]
[1764083495699,0.45,86663.0,86662.0,0.64257]
[1764083496091,0.45009522,86663.0,86662.0,0.64257]
[1764083496398,0.45009522,86663.0,86655.0,0.08156]
[1764083496399,0.08873,86656.0,86655.0,0.08156]
[1764083496582,0.48873,86656.0,86655.0,0.08156]
[1764083496788,0.4,86656.0,86655.0,0.3748754]
[1764083497595,9.522e-05,86663.0,86662.0,0.2933145]
[1764083497792,9.522e-05,86663.0,86662.0,0.6541145]
[1764083498985,9.522e-05,86663.0,86662.0,0.6551145]
[1764083499189,9.522e-05,86663.0,86662.0,0.64357]
[1764083499391,0.50998522,86663.0,86662.0,0.3618]
[1764083499994,0.50998522,86663.0,86662.0,0.001]
[1764083499995,0.65601952,86663.0,86662.0,0.001]
[1764083500395,9.522e-05,86663.0,86662.0,0.8377945]
[1764083500596,9.522e-05,86663.0,86662.0,0.64257]
[1764083500896,0.66447522,86663.0,86662.0,0.64257]
[1764083501099,0.66447522,86663.0,86658.0,0.18376]
[1764083501301,0.66547522,86663.0,86658.0,0.18376]
[1764083501503,0.1518,86659.0,86658.0,0.18376]
[1764083501702,0.5818,86659.0,86658.0,0.1953049]
[1764083502103,0.43,86659.0,86658.0,0.4763249]
[1764083502696,0.43,86659.0,86658.0,0.32397]
[1764083502897,0.5818,86659.0,86658.0,0.18376]
[1764083503701,0.43,86659.0,86658.0,0.46478]
[1764083503903,0.72158,86659.0,86658.0,0.18376]
[1764083504098,0.43,86659.0,86658.0,0.46478]
[1764083504601,0.72158,86659.0,86658.0,0.18376]
[1764083504999,0.72158,86659.0,86651.0,0.3608]
[1764083505312,0.43,86659.0,86649.0,0.50161]
[1764083505604,9.522e-05,86663.0,86662.0,0.2925645]
[1764083505806,9.522e-05,86663.0,86662.0,0.8372045]
[1764083507007,9.522e-05,86663.0,86662.0,0.8382045]
[1764083507196,9.522e-05,86663.0,86662.0,0.89988601]
[1764083507391,9.522e-05,86663.0,86662.0,0.82766]
[1764083507392,0.01163952,86663.0,86662.0,0.82766]
[1764083507593,0.74321952,86663.0,86662.0,0.14221]
[1764083507793,0.73167522,86663.0,86662.0,0.14221]
[1764083508198,0.73167522,86663.0,86662.0,0.14121]
[1764083508403,0.73167522,86663.0,86662.0,0.50101]
[1764083508603,0.59189522,86663.0,86662.0,0.64282]
[1764083508902,0.44009522,86663.0,86662.0,0.64282]
[1764083509105,9.522e-05,86663.0,86662.0,0.64182]
[1764083509500,0.5126,86678.0,86677.0,0.14021]
[1764083509693,0.5126,86678.0,86677.0,0.28102]
[1764083509694,0.9626,86678.0,86677.0,0.28102]
[1764083510298,0.43768,86700.0,86677.0,0.28102]
[1764083510509,0.43768,86700.0,86698.0,0.2925597]
[1764083510510,0.00010186,86699.0,86698.0,0.2925597]
[1764083510710,0.43010186,86699.0,86698.0,0.4763997]
[1764083511301,0.72168186,86699.0,86695.0,0.3608]
[1764083511612,0.43010186,86699.0,86698.0,0.28102]
[1764083511806,0.29158,86696.0,86695.0,0.3608]
[1764083512113,0.73158,86696.0,86695.0,0.18384]
[1764083512307,0.5918,86696.0,86695.0,0.32405]
[1764083512607,0.44,86696.0,86695.0,0.32405]
[1764083512803,0.73158,86696.0,86695.0,0.18384]
[1764083513004,0.0115408,86690.0,86687.0,0.3608]
[1764083513199,0.44,86690.0,86688.0,0.195381]
[1764083513407,0.44,86690.0,86689.0,0.14021]
[1764083513603,0.3031209,86689.0,86688.0,0.18384]
[1764083513799,0.29158,86681.0,86680.0,0.00017311]
[1764083514110,0.66172038,86681.0,86680.0,0.18397311]
[1764083514308,0.66172038,86681.0,86680.0,0.47653521]
[1764083514309,0.37014038,86681.0,86680.0,0.47653521]
[1764083514812,0.37014038,86681.0,86680.0,0.46499311]
[1764083516514,0.52194038,86681.0,86680.0,0.32418311]
[1764083516701,0.37014038,86681.0,86680.0,0.32418311]
[1764083516900,0.37014038,86681.0,86680.0,0.46499311]
[1764083517916,0.52194038,86681.0,86680.0,0.18397311]
[1764083518116,0.66172038,86681.0,86680.0,0.18397311]
[1764083519716,0.37014038,86681.0,86680.0,0.46719521]
[1764083520419,0.00014038,86681.0,86680.0,0.46719521]
[1764083520613,0.69927228,86681.0,86680.0,0.18389311]
[1764083520808,0.68773038,86681.0,86680.0,0.18389311]
[1764083521312,0.68773038,86681.0,86680.0,0.45281311]
[1764083521313,3.8e-07,86681.0,86680.0,0.45281311]
[1764083521516,0.00017311,86689.0,86686.0,0.0115412]
[1764083521517,0.26759,86687.0,86686.0,0.0115412]
[1764083521704,0.26759,86681.0,86680.0,0.00017311]
[1764083521911,0.00017311,86689.0,86688.0,0.011541]
[1764083522121,0.41017311,86689.0,86688.0,0.280461]
[1764083522309,0.0115417,86683.0,86682.0,0.06207573]
[1764083522510,0.0115417,86683.0,86680.0,0.00017311]
[1764083522511,0.26759,86681.0,86680.0,0.00017311]
[1764083522816,0.63759,86681.0,86680.0,0.00017311]
[1764083523215,0.50606,86681.0,86680.0,0.13762311]
[1764083523416,0.37,86681.0,86680.0,0.26909311]
[1764083523617,0.00011978,86683.0,86682.0,0.13745]
[1764083523915,0.13606,86715.0,86688.0,0.08142]
[1764083524123,0.57606,86715.0,86704.0,0.062083]
[1764083524312,0.26759,86713.0,86712.0,0.0115377]
[1764083524515,0.71759,86713.0,86712.0,0.0115377]
[1764083524913,0.49686,86720.0,86719.0,0.0115369]
[1764083525119,0.13606,86716.0,86715.0,0.0115373]
[1764083525313,0.57606,86716.0,86715.0,0.0115373]
[1764083525514,0.44,86716.0,86715.0,0.2804573]
[1764083526408,0.44,86716.0,86709.0,0.3608]
[1764083526409,0.26759,86715.0,86714.0,0.0115374]
[1764083526717,0.65759,86715.0,86714.0,0.0115374]
[1764083526914,0.52606,86715.0,86714.0,0.1489874]
[1764083527121,0.39,86715.0,86714.0,0.2804574]
[1764083527706,0.39,86715.0,86714.0,0.2804575]
[1764083528315,0.392,86715.0,86714.0,0.2804575]
[1764083528719,0.392,86715.0,86714.0,0.6412575]
[1764083528911,0.393,86715.0,86714.0,0.6412575]
[1764083529114,0.6721274,86715.0,86714.0,0.18364]
[1764083529318,0.66059,86715.0,86714.0,0.18364]
[1764083529716,0.52906,86715.0,86714.0,0.32109]
[1764083529911,0.6711274,86715.0,86714.0,0.1836]
[1764083530316,0.65959,86715.0,86714.0,0.1836]
[1764083530511,0.00017301,86721.0,86714.0,0.1836]
[1764083530512,0.00017301,86721.0,86714.0,0.45252]
[1764083530714,3.01e-06,86721.0,86720.0,0.2804567]
[1764083532732,3.01e-06,86721.0,86720.0,0.4640967]
[1764083534422,3.01e-06,86721.0,86720.0,0.26892]
[1764083534721,0.40000301,86721.0,86720.0,0.45737]
[1764083535323,3.01e-06,86721.0,86720.0,0.45737]
[1764083535528,3.01e-06,86721.0,86714.0,0.06184883]
[1764083535529,0.26005,86715.0,86714.0,0.06184883]
[1764083535716,0.26005,86705.0,86704.0,0.00017301]
[1764083535918,0.26005,86698.0,86696.0,0.06184883]
[1764083536120,0.12715,86687.0,86686.0,0.0115412]
[1764083536325,0.52715,86687.0,86684.0,0.1951414]
[1764083536622,0.52715,86687.0,86686.0,0.12529]
[1764083536824,0.12715,86685.0,86684.0,0.1836]
[1764083537027,0.66005,86685.0,86684.0,0.1951415]
[1764083537530,0.66005,86685.0,86684.0,0.1836]
[1764083537727,0.26005,86682.0,86681.0,9.914e-05]
[1764083538027,0.26005,86682.0,86676.0,0.00017301]
[1764083538028,0.26005,86677.0,86676.0,0.00017301]
[1764083538325,0.70005,86677.0,86676.0,0.00017301]
[1764083540140,0.26005,86666.0,86665.0,0.06184883]
[1764083540329,0.39009914,86666.0,86665.0,0.12529]
[1764083540625,0.39009914,86666.0,86665.0,0.26157]
[1764083540827,9.914e-05,86666.0,86665.0,0.62237]
[1764083542329,0.50724914,86666.0,86665.0,0.06192175]
[1764083542536,0.50724914,86666.0,86658.0,0.3608]
[1764083542537,0.26005,86661.0,86660.0,0.1836]
[1764083542834,0.63005,86661.0,86660.0,0.1836]
[1764083543020,0.49715,86661.0,86660.0,0.30889]
[1764083543225,0.37,86661.0,86660.0,0.52723]
[1764083543829,9.914e-05,86666.0,86665.0,0.26157]
[1764083544029,9.914e-05,86666.0,86665.0,0.2731141]
[1764083544231,9.914e-05,86666.0,86665.0,0.6339141]
[1764083544733,0.00017301,86674.0,86673.0,0.273113]
[1764083545129,0.26022301,86674.0,86673.0,0.06187754]
[1764083545326,0.26005,86672.0,86671.0,0.0115433]
[1764083545526,0.23,86672.0,86671.0,0.2731133]
[1764083545728,0.00017301,86674.0,86673.0,0.26157]
[1764083546234,0.43017301,86674.0,86673.0,0.26157]
[1764083546430,0.43017301,86674.0,86673.0,0.44513]
[1764083546630,0.00017301,86674.0,86673.0,0.44613]
[1764083547030,0.3608,86694.0,86675.0,0.0115427]
[1764083547238,0.12715,86693.0,86692.0,0.0115404]
[1764083547429,0.52715,86693.0,86692.0,0.0115404]
[1764083547732,0.4,86693.0,86692.0,0.12529]
[1764083548038,0.66005,86693.0,86684.0,0.00017301]
[1764083548238,0.0115397,86699.0,86694.0,0.0115401]
[1764083548437,0.26005,86698.0,86697.0,0.0115398]
[1764083548735,0.00017301,86701.0,86700.0,0.26157]
[1764083548934,0.00017301,86701.0,86700.0,0.80593]
[1764083549534,0.3608,86718.0,86715.0,0.0115373]
[1764083549729,0.12715,86716.0,86715.0,0.0115373]
[1764083549925,0.29715,86716.0,86715.0,0.0115373]
[1764083550130,0.17,86716.0,86715.0,0.2731073]
[1764083550425,0.17,86716.0,86707.0,0.00017301]
[1764083550426,0.26005,86712.0,86707.0,0.00017301]
[1764083550631,0.26005,86708.0,86707.0,0.18373301]
[1764083550839,0.63005,86708.0,86707.0,0.18373301]
[1764083551037,0.6415883,86708.0,86707.0,0.18373301]
[1764083551234,0.6415883,86708.0,86707.0,0.00017301]
[1764083551833,0.6415883,86708.0,86681.0,0.3608]
[1764083551834,0.26005,86684.0,86682.0,0.06185181]
[1764083552035,0.26005,86684.0,86678.0,0.0115423]
[1764083552036,0.26005,86679.0,86678.0,0.0115423]
[1764083552242,0.17,86679.0,86678.0,0.1368323]
[1764083552435,0.17,86679.0,86678.0,0.2731123]
[1764083552637,0.3608,86687.0,86681.0,0.0115418]
[1764083552842,0.41,86687.0,86683.0,0.0115415]
[1764083553043,0.00017301,86693.0,86692.0,0.0115405]
[1764083553340,0.26005,86692.0,86691.0,0.0115405]
[1764083553528,0.21715,86692.0,86691.0,0.3723405]
[1764083553732,0.00017301,86693.0,86691.0,0.3723405]
[1764083553733,0.00017301,86693.0,86692.0,0.26157]
[1764083553932,0.0115375,86714.0,86702.0,0.08206]
[1764083554134,0.0115382,86710.0,86705.0,0.0115386]
[1764083554339,0.12715,86705.0,86702.0,0.0115391]
[1764083554538,0.54715,86705.0,86702.0,0.0115391]
[1764083554841,0.42,86705.0,86701.0,0.3723392]
[1764083555042,0.42,86705.0,86701.0,0.0115392]
[1764083555339,0.42,86705.0,86703.0,0.0115389]
[1764083555647,0.2715899,86696.0,86695.0,0.00017301]
[1764083555845,0.7215899,86696.0,86695.0,0.00017301]
[1764083556039,0.71005,86696.0,86695.0,0.00017301]
[1764083556631,0.71005,86696.0,86695.0,0.01171311]
[1764083557136,0.71105,86696.0,86695.0,0.00017301]
[1764083557945,0.452,86696.0,86695.0,0.26174301]
[1764083558640,0.002,86696.0,86695.0,0.26174301]
[1764083559036,0.0019052,86696.0,86695.0,0.26174301]
[1764083561444,0.2805752,86696.0,86695.0,0.00017301]
[1764083561650,0.7105752,86696.0,86695.0,0.18365301]
[1764083561846,0.7105752,86696.0,86695.0,0.32172301]
[1764083562345,0.4319052,86696.0,86695.0,0.46852301]
[1764083562540,0.22665972,86696.0,86695.0,0.46852301]
[1764083563341,0.3608,86708.0,86695.0,0.18365301]
[1764083563651,0.00017301,86712.0,86711.0,0.2964079]
[1764083563845,0.47918301,86712.0,86711.0,0.13807]
[1764083564147,0.27867,86710.0,86709.0,0.18348]
[1764083564444,0.70867,86710.0,86709.0,0.18348]
[1764083565243,0.70867,86710.0,86709.0,0.32155]
[1764083565442,0.70867,86710.0,86709.0,0.38353069]
[1764083565642,0.00117301,86712.0,86711.0,0.28487]
[1764083565942,0.00117301,86712.0,86711.0,0.34689584]
[1764083566146,0.00017301,86712.0,86711.0,0.28487]
[1764083566645,0.27884301,86712.0,86711.0,0.24549569]
[1764083566850,0.47084301,86712.0,86711.0,0.24549569]
[1764083567054,0.67084301,86712.0,86711.0,0.24549569]
[1764083567349,0.28084301,86712.0,86711.0,0.38356569]
[1764083567545,0.72084301,86712.0,86711.0,0.18348]
[1764083567747,0.72084301,86712.0,86711.0,0.32155]
[1764083567949,0.67084301,86712.0,86711.0,0.32155]
[1764083568152,0.67084301,86712.0,86711.0,0.38356569]
[1764083568346,0.67084301,86712.0,86711.0,0.20008569]
[1764083568541,0.67084301,86712.0,86711.0,0.24549569]
[1764083568744,0.00217301,86712.0,86711.0,0.46835]
[1764083569151,3.01e-06,86712.0,86711.0,0.46835]
[1764083569349,0.0115356,86729.0,86715.0,0.0115373]
[1764083569551,0.27867,86727.0,86726.0,0.06199206]
[1764083569756,0.27867,86724.0,86714.0,0.08265608]
[1764083570050,0.27867,86724.0,86701.0,0.1950192]
[1764083570051,0.2902086,86706.0,86701.0,0.1950192]
[1764083570253,0.27867,86702.0,86701.0,0.1950192]
[1764083570551,0.68867,86702.0,86701.0,0.32155]
[1764083570753,0.68867,86702.0,86701.0,0.18348]
[1764083571555,0.27867,86697.0,86696.0,0.0115399]
[1764083571751,0.27867,86697.0,86696.0,0.1950199]
[1764083572455,0.27867,86697.0,86696.0,0.3330899]
[1764083572456,0.13901,86697.0,86696.0,0.3330899]
[1764083573057,0.27867,86704.0,86703.0,0.011539]
[1764083573248,0.68867,86704.0,86703.0,0.011539]
[1764083573444,0.68867,86704.0,86703.0,0.296409]
[1764083573758,0.00017301,86712.0,86711.0,0.2964079]
[1764083573959,0.64884301,86712.0,86711.0,0.4798879]
[1764083574160,0.64884301,86712.0,86711.0,0.18348]
[1764083574161,0.66038081,86712.0,86711.0,0.18348]
[1764083574857,0.66038081,86712.0,86711.0,0.1950179]
[1764083575054,0.64884301,86712.0,86711.0,0.18348]
[1764083575257,0.64884301,86712.0,86699.0,0.3608]
[1764083575258,0.27867,86705.0,86704.0,0.27767488]
[1764083575458,0.66867,86705.0,86704.0,0.1950188]
[1764083575644,0.66867,86705.0,86704.0,0.3330888]
[1764083575848,0.11,86705.0,86704.0,0.4798888]
[1764083576054,0.15072091,86712.0,86711.0,0.1496079]
[1764083576253,0.0115383,86709.0,86708.0,0.0115383]
[1764083576553,0.4,86709.0,86708.0,0.1496083]
[1764083576861,0.00017301,86712.0,86711.0,0.2964079]
[1764083577961,0.00017301,86712.0,86711.0,0.28487]
[1764083578552,3.01e-06,86712.0,86711.0,0.28487]
[1764083579052,3.01e-06,86712.0,86711.0,0.3888248]
[1764083579259,3.01e-06,86712.0,86711.0,0.28487]
[1764083580457,3.01e-06,86712.0,86711.0,0.68487]
[1764083580655,3.01e-06,86712.0,86711.0,0.86835]
[1764083580852,3.01e-06,86712.0,86711.0,0.28487]
[1764083581051,3.01e-06,86712.0,86711.0,0.45094]
[1764083581958,0.26244301,86712.0,86711.0,0.13807]
[1764083582263,0.12000301,86712.0,86711.0,0.44106]
[1764083582446,3.01e-06,86712.0,86711.0,0.44106]
[1764083582646,0.0115387,86706.0,86705.0,0.08284764]
[1764083582862,0.66244,86706.0,86705.0,0.18344]
[1764083583247,0.2739791,86702.0,86700.0,0.08284764]
[1764083583451,0.26244,86696.0,86694.0,0.08284764]
[1764083583656,0.63244,86696.0,86695.0,0.54441301]
[1764083583856,0.63244,86696.0,86695.0,0.18361301]
[1764083585256,0.37,86696.0,86695.0,0.44119301]
[1764083585451,0.3608,86710.0,86709.0,0.12819]
[1764083585756,0.26244,86696.0,86695.0,0.00017301]
[1764083585960,0.66244,86696.0,86695.0,0.18361301]
[1764083586356,0.3723381,86710.0,86697.0,0.07558]
[1764083586559,0.3608,86710.0,86709.0,0.12819]
[1764083586759,0.89243,86710.0,86709.0,0.25758]
[1764083586962,0.3608,86710.0,86709.0,0.25758]
[1764083587152,0.4108,86710.0,86709.0,0.25758]
[1764083587548,0.5608,86710.0,86709.0,0.25758]
[1764083587752,0.3608,86721.0,86710.0,0.0115381]
[1764083587959,0.011537,86719.0,86710.0,0.0115381]
[1764083588158,0.13163,86711.0,86710.0,0.0115381]
[1764083588458,0.26244,86709.0,86708.0,0.18348]
[1764083589467,0.26244,86702.0,86698.0,0.08284764]
[1764083589652,0.26244301,86712.0,86711.0,0.0115379]
[1764083589857,0.33000301,86712.0,86711.0,0.2691179]
[1764083590255,3.01e-06,86712.0,86711.0,0.0115379]
[1764083591260,3.01e-06,86712.0,86710.0,0.5725981]
[1764083591261,0.12915,86711.0,86710.0,0.5725981]
[1764083591457,3.01e-06,86712.0,86710.0,0.7040581]
[1764083591672,3.01e-06,86712.0,86710.0,0.5793781]
[1764083591857,3.01e-06,86712.0,86710.0,0.8479181]
[1764083592865,3.01e-06,86712.0,86710.0,0.4479181]
[1764083593053,3.01e-06,86712.0,86711.0,0.18348]
[1764083593567,3.01e-06,86712.0,86711.0,0.58348]
[1764083593966,3.01e-06,86712.0,86711.0,0.18348]
[1764083594168,3.01e-06,86712.0,86711.0,0.0115379]
[1764083594357,3.01e-06,86712.0,86711.0,0.1949779]
[1764083598460,0.25767,86747.0,86746.0,0.0115332]
[1764083598660,0.70767,86747.0,86746.0,0.1949732]
[1764083598961,0.43767,86747.0,86746.0,0.4511132]
[1764083599163,0.6492032,86747.0,86746.0,0.24550495]
[1764083599360,0.2692036,86744.0,86742.0,0.06206495]
[1764083599666,0.25767,86739.0,86738.0,0.00017301]
[1764083599866,0.62767,86739.0,86738.0,0.18361301]
[1764083600360,0.6392042,86739.0,86738.0,0.00017301]
[1764083600957,0.2692049,86734.0,86732.0,0.0620339]
[1764083601258,0.25767,86728.0,86727.0,0.0620339]
[1764083601463,0.25767,86725.0,86724.0,0.0620339]
[1764083601760,0.25767,86725.0,86722.0,0.1949764]
[1764083601960,0.25767,86723.0,86722.0,0.1949764]
[1764083602162,0.62767,86723.0,86722.0,0.1949764]
[1764083602760,0.62767,86723.0,86722.0,0.18344]
[1764083602959,0.25767,86720.0,86719.0,0.0115369]
[1764083603166,0.25767,86716.0,86715.0,0.01171041]
[1764083603358,0.25767,86716.0,86715.0,0.00017301]
[1764083603558,0.69767,86716.0,86715.0,0.18361301]
[1764083603761,0.44,86716.0,86715.0,0.43975301]
[1764083604071,0.05597,86749.0,86715.0,0.43975301]
[1764083604072,0.0115341,86740.0,86731.0,0.2676753]
[1764083604261,0.0115337,86743.0,86731.0,0.32972812]
[1764083604564,0.3608,86755.0,86731.0,0.2676753]
[1764083604867,0.25767,86747.0,86746.0,0.0115333]
[1764083605067,0.2692033,86746.0,86745.0,0.0620389]
[1764083605268,0.6692033,86746.0,86745.0,0.0620389]
[1764083605568,0.66767,86746.0,86745.0,0.0115334]
[1764083605759,0.41,86746.0,86745.0,0.6284734]
[1764083605957,0.00017301,86754.0,86753.0,0.2676724]
[1764083606267,0.12915,86750.0,86745.0,0.44351853]
[1764083606567,0.12915,86749.0,86748.0,0.0115329]
[1764083606862,0.00017301,86754.0,86745.0,0.3608]
[1764083606863,0.011533,86748.0,86745.0,0.3608]
[1764083607064,0.25767,86742.0,86738.0,0.44351853]
[1764083607264,0.00017301,86754.0,86747.0,0.0115331]
[1764083607568,0.25767,86746.0,86745.0,0.06298348]
[1764083607863,0.67767,86746.0,86745.0,0.1834]
[1764083608063,0.25767,86742.0,86741.0,0.06198348]
[1764083608367,0.2692039,86741.0,86740.0,0.06198348]
[1764083608664,0.63767,86741.0,86740.0,0.24538348]
[1764083608963,0.25767,86738.0,86737.0,0.00017301]
[1764083609156,0.65767,86738.0,86737.0,0.00017301]
[1764083609766,0.25767,86727.0,86726.0,0.06198348]
[1764083609973,0.2692062,86724.0,86723.0,0.06198348]
[1764083610174,0.25767,86718.0,86717.0,0.06198348]
[1764083610470,0.69767,86718.0,86717.0,0.25692058]
[1764083611061,0.44,86718.0,86717.0,0.4510771]
[1764083611771,0.0001729,86726.0,86725.0,0.2676761]
[1764083612871,0.48995,86746.0,86745.0,0.0115334]